Cogmind - Beta 16.1 @@@ ROGUE MODE // 2026.04.10 @ 01:54:03 Player: Maelyn Result: Destroyed by S-10 Pest with Light Assault Rifle Performance ------------- Evolutions (0) 0 Regions Visited (1) 200 Robots Destroyed (28) 140 Value Destroyed (494) 494 Prototype IDs (0) 0 Alien Tech Used (0) 0 Bonus (0) 0 TOTAL SCORE: 834 Bonus ------- None Cogmind --------- Core Integrity 0/250 Matter 9/300 Energy 100/100 System Corruption 1% Temperature Cool (0) Movement Core (700) Ox13 Location -10/Materials Parts ------- > --- POWER (1) -------- (None) > --- PROPULSION (2) --- (None) > --- UTILITY (2) ------ High-capacity Storage Unit > --- WEAPON (2) ------- (None) > --- INVENTORY (20) --- Light Ion Engine Light Treads Aluminum Leg Aluminum Leg High-capacity Storage Unit Medium Battery (150) Medium Laser Peak State ------------ > --- POWER ------------ Ion Engine > --- PROPULSION ------- Light Treads Light Treads > --- UTILITY ---------- Small Storage Unit Seismic Detector > --- WEAPON ----------- Assault Rifle Light Assault Rifle > --- INVENTORY -------- Light Ion Engine Light Ion Engine Aluminum Leg Aluminum Leg Medium Laser [Rating: 7] Favorites ----------- Power Ion Engine Engine Ion Engine Propulsion Light Treads Treads Light Treads Utility Seismic Detector Device Seismic Detector Storage Small Storage Unit Weapon Assault Rifle Ballistic Gun Assault Rifle Ballistic Cannon Light Cannon Build | -11 -10 ------- Run | Yrd Mat Slots Evolved . | . . Power . | . . Propulsion . | . . Utility . | . . Weapon . | . . Parts Attached 10 | 7 3 Power 1 | 1 . Engine 1 | 1 . Core . | . . Reactor . | . . Propulsion 2 | 2 . Treads 2 | 2 . Leg . | . . Wheel . | . . Hover . | . . Flight . | . . Utility 3 | 2 1 Device 1 | 1 . Storage 2 | 1 1 Processor . | . . Hackware . | . . Protection . | . . Artifact . | . . Weapon 4 | 2 2 Energy Gun . | . . Energy Cannon . | . . Ballistic Gun 3 | 2 1 Ballistic Cannon 1 | . 1 Launcher . | . . Special Weapon . | . . Impact Weapon . | . . Slashing Weapon . | . . Piercing Weapon . | . . Special Melee Weapon . | . . Unidentified Prototypes . | . . Parts Lost 7 | . 7 Power 1 | . 1 Propulsion 2 | . 2 Utility 1 | . 1 Weapon 3 | . 3 Highest Loss Streak 5 | . 5 To Critical Strikes . | . . Average Backups 7 | 4 7 Power 1 | 1 1 Propulsion 2 | 1 2 Utility . | . 1 Weapon 2 | 1 2 Tool/Special . | . . Unused Backups 8 | . 8 Power 2 | . 2 Propulsion 3 | . 3 Utility 2 | . 2 Weapon 1 | . 1 Tool/Special . | . . Average Slot Usage (%) 96 | . 96 Engine 13 | . 13 Treads 26 | . 26 Device 12 | . 12 Storage 14 | . 14 Ballistic Gun 26 | . 26 Peak Build Rating 7 | 7 7 Average Rating 6 | 4 6 On Entrance 3 | . 7 Avg Prop Armor Cover (%) . | . . Naked Turns . | . . Heaviest Build 50 | 14 50 Greatest Support 40 | 40 40 Greatest Overweight (x) 14 | 2 14 Average Overweight (x) . | . . Largest Inventory Capacity 20 | 8 20 Average Capacity 13 | 7 13 Most Carried 9 | 7 9 Average Carried 7 | 4 7 Final Capacity 20 | 8 20 Final Carried 7 | 5 7 Class Distribution -------------------- 100% | Mutant Dominant Class ---------------- Mutant | -10/Materials Resources | -11 -10 ----------- Run | Yrd Mat Matter Collected 323 | 238 85 Remotely . | . . Salvage Created 630 | 112 518 Parts 48 | 9 39 Haulers Intercepted 1 | . 1 Recyclers Shooed . | . . Parts Field Recycled . | . . Retrieved Matter . | . . Parts Self-Destructed . | . . Prevented . | . . Parts Restored . | . . Kills | -11 -10 ------- Run | Yrd Mat Combat Hostiles Destroyed 14 | . 14 Guns 12 | . 12 Cannons 2 | . 2 Classes Destroyed 8 | 1 7 Worker 2 | . 2 Builder 2 | . 2 Tunneler 5 | 5 . Hauler 1 | . 1 Operator 1 | . 1 Watcher 3 | . 3 Swarmer 7 | . 7 Grunt 7 | . 7 Best Kill Streak 10 | 3 10 Combat Bots Only 7 | . 7 Max Kills in Single Turn 5 | 1 5 Gunslinging . | . . Exploded . | . . Melee . | . . Uniques/NPCs Destroyed . | . . Combat | -11 -10 -------- Run | Yrd Mat Hostile Shots Fired 160 | . 160 Missed 52 | . 52 Hits 108 | . 108 Projectile 108 | . 108 Critical Strikes 1 | . 1 Damage Taken 1054 | . 1054 Core 251 | . 251 Absorbed by Shields . | . . Core Remaining (%) 100 | 100 . Volleys Fired 75 | 12 63 Largest 2 | 2 2 Hottest 50 | 40 50 Shots Fired 141 | 24 117 Gun 128 | 24 104 Cannon 13 | . 13 Launcher . | . . Special . | . . Kinetic 141 | 24 117 Thermal . | . . Explosive . | . . Electromagnetic . | . . Robot Hit Streak 8 | 4 8 Robot Miss Streak 5 | 2 5 Penetration Max . | . . Secondary Targets 1 | . 1 Max Gunslinging Chain 1 | . 1 Shots Hit Robots 77 | 13 64 Core Hits 36 | 7 29 Critical Kills . | . . Critical Parts Destroyed . | . . Critical Strikes 1 | . 1 Blast 1 | . 1 Melee Attacks . | . . Impact . | . . Slashing . | . . Piercing . | . . Sneak Attacks . | . . Combat Hostiles . | . . Follow-up Attacks . | . . Damage Inflicted 1461 | 152 1309 Guns 812 | 152 660 Cannons 158 | . 158 Explosions 486 | . 486 Melee . | . . Ramming 5 | . 5 Kinetic 970 | 152 818 Thermal 486 | . 486 Explosive . | . . Electromagnetic . | . . Impact . | . . Slashing . | . . Piercing . | . . Highest Corruption 1 | . 1 Average Corruption 1 | . 1 Corruption Purged . | . . Corruption Blocked . | . . Effects 3 | . 3 Message Errors 1 | . 1 Heat Flow Errors 1 | . 1 Parts Rejected 1 | . 1 Overload Shots . | . . Overflow Damage 209 | . 209 Projectiles . | . . Explosions 209 | . 209 Melee . | . . Knockbacks 1 | . 1 Impact . | . . Kinetic 1 | . 1 Secondary . | . . Self-Inflicted Damage . | . . Shots . | . . Rammed 3 | . 3 Targets Rammed 3 | . 3 Kicked . | . . Crushed . | . . Highest Temperature 215 | . 215 Average Temperature 34 | . 34 Received Heat Transfer 345 | . 345 Siege Activations . | . . Martial Activations . | . . Shielding Activations . | . . Robots Disrupted . | . . Combat Hostiles . | . . Robots Corrupted . | . . Combat Hostiles . | . . Parts Fried . | . . Impact Corruptions . | . . Robots Melted . | . . Combat Hostiles . | . . Parts Melted . | . . Heat Transferred 300 | . 300 Parts Sabotaged . | . . Parts Stolen . | . . Parts Stripped . | . . Power Chain Reactions . | . . Alert | -11 -10 ------- Run | Yrd Mat Maximum Alert Level 1 | . 1 Low Security (%) 90 | 100 89 Level 1 9 | . 10 Level 2 . | . . Level 3 . | . . Level 4 . | . . Level 5 . | . . High Security . | . . Max Security . | . . Peak Influence 237 | 10 237 Initial . | . . Average 59 | . 69 Influence Increases 542 | 25 517 Destroy 0b10 Robot/C 280 | . 280 Destroy 0b10 Robot/NC 70 | 25 45 Destroy Leader 68 | . 68 Disable Machine 90 | . 90 Destroy Structure 34 | . 34 Influence Decreases 439 | 25 414 Time Decay 389 | 25 364 Lost Part 50 | . 50 Squads Dispatched 2 | . 2 Investigation 1 | . 1 Extermination . | . . Reinforcement 1 | . 1 Assault . | . . Garrison . | . . Intercept . | . . Searches Triggered . | . . Construction Impeded . | . . Haulers Reinforced . | . . Active Scanning Responses . | . . Cargo Convoy Interrupts . | . . Stealth | -11 -10 --------- Run | Yrd Mat Distress Signals . | . . Communications Jammed . | . . Distress Signals . | . . Times Spotted 25 | . 25 Peak Tracking Total 6 | . 6 Tactical Retreats . | . . Traps | -11 -10 ------- Run | Yrd Mat Traps Triggered 1 | . 1 Indirectly . | . . Trap Hack Attempts . | . . Triggered . | . . Disarmed . | . . Reprogrammed . | . . Reused . | . . Traps Extracted . | . . Installed . | . . Triggered . | . . Machines | -11 -10 ---------- Run | Yrd Mat Machines Disabled 6 | . 6 Max in Single Turn 5 | . 5 Machines Repaired . | . . Machines Dismantled . | . . Machines Sabotaged . | . . Overloaded Fab Kills . | . . Hacking | -11 -10 --------- Run | Yrd Mat Machines Accessed 1 | . 1 Terminals 1 | . 1 Fabricators . | . . Repair Stations . | . . Recycling Units . | . . Scanalyzers . | . . Garrison Access . | . . Total Hacks 3 | . 3 Successful 1 | . 1 Failed 2 | . 2 Catastrophic 1 | . 1 Database Lockouts . | . . Manual 2 | . 2 Terminals 3 | . 3 Fabricators . | . . Repair Stations . | . . Recycling Units . | . . Scanalyzers . | . . Garrison Access . | . . Terminal Hacks 1 | . 1 Dispatch Records 1 | . 1 Fabricator Hacks . | . . Repair Station Hacks . | . . Recycling Unit Hacks . | . . Scanalyzer . | . . Garrison Access Hacks . | . . Unauthorized Hacks . | . . Terminals . | . . Fabricators . | . . Repair Stations . | . . Recycling Units . | . . Scanalyzers . | . . Garrison Access . | . . Data Cores Recovered . | . . Used . | . . Hacking Detections 1 | . 1 Full Trace Events 1 | . 1 Feedback Events 1 | . 1 Corruption 1 | . 1 Feedback Blocked . | . . Robot Schematics Acquired . | . . Robots Built . | . . Authchips . | . . Time . | . . Total Robot Build Rating . | . . Part Schematics Acquired . | . . Parts Built . | . . Authchips . | . . Time . | . . Total Part Build Rating . | . . Part Studies Acquired . | . . Parts Repaired . | . . Time . | . . Parts Recycled . | . . Recycled Matter . | . . Retrieved Matter . | . . Retrieved Components . | . . Parts Scanalyzed . | . . Part Schematics Acquired . | . . Parts Damaged . | . . Bothacking | -11 -10 ------------ Run | Yrd Mat Used RIF Installer . | . . Robots Hacked . | . . Non-combat . | . . Combat . | . . Robot Hacks Applied . | . . Relay Couplers Released . | . . Fabnet Peak Effective % . | . . Robots Rewired . | . . Allies Hacked . | . . Hacks Repelled . | . . Allies | -11 -10 -------- Run | Yrd Mat Total Allies . | . . Largest Group . | . . Highest-Rated Group . | . . Highest-Rated Ally . | . . Total Orders . | . . Ally Attacks . | . . Total Damage . | . . Kills . | . . Allies Corrupted . | . . Allies Melted . | . . Intel | -11 -10 ------- Run | Yrd Mat Active Infowar (turns) 1139 | 11 1128 Seismic 1139 | 11 1128 Robot Analysis Total . | . . Derelict Logs Recovered . | . . Drone Launches . | . . Drone Recoveries . | . . Exploration | -11 -10 ------------- Run | Yrd Mat Turns Passed 1414 | 199 1215 Spaces Moved 627 | 97 530 Core 34 | 30 4 Treads 593 | 67 526 Legs . | . . Wheels . | . . Hover . | . . Flight . | . . Fastest Speed 50 | 50 160 Average Speed 187 | 151 194 Slowest Speed 750 | 160 750 Overloaded Moves . | . . Propulsion Burnouts . | . . Robots Hopped . | . . Potential Cave-ins . | . . Cave-ins Triggered . | . . Exploration Rate (%) 34 | 6 62 Regions Visited 1 Branch Regions . Pre-discovered Areas . | . . Known Exits Taken . | . . Unknown Exits Taken 1 | 1 . Scrap Searched . | . . Spaces Dug . | . . Terrain Destroyed 36 | . 36 Melee . | . . Projectile . | . . AOE 36 | . 36 Terrain Rammed . | . . Walls Destroyed . | . . Machines Disabled . | . . Actions | -11 -10 --------- Run | Yrd Mat Total 734 | 127 607 Wait . | . . Move 626 | 96 530 Hop . | . . Pick Up 17 | 12 5 Fast Attach . | . . Attach 9 | 7 2 Detach . | . . Swap 2 | . 2 Drop 2 | . 2 Fire 75 | 12 63 Melee . | . . Ram . | . . Kick . | . . Crush 3 | . 3 Escape Stasis . | . . Rewire . | . . Trap . | . . Miscellaneous . | . . Route ------- -11/Scrapyard -10/Materials (discovered 2 exits: [*Mat] / [*Min]) History --------- Turn | Location | Event 32 | -11/Scrapyard | Discovered new exit (range 15) 200 | -11/Scrapyard | Entered Materials 305 | -10/Materials | Build established: Mutant 638 | -10/Materials | Discovered new exit (range 9) 911 | -10/Materials | Discovered new exit (range 3) 1374 | -10/Materials | Core integrity fell below 50% 1377 | -10/Materials | Lost 5 parts (1p1n1u2w) 1395 | -10/Materials | Core integrity fell below 20% 1410 | -10/Materials | Destroyed 7 combat bots 1415 | -10/Materials | Destroyed by S-10 Pest with Light Assault Rifle Last Messages --------------- 01379_ K-01 Serf collects debris. 01380_ G-34 Mercenary destroyed. 01382_ K-01 Serf collects debris. 01383_ R-06 Scavenger collects Lgt. Nuclear Core. 01386_ K-01 Serf collects debris. 01386_ R-06 Scavenger collects Heat Sink. 01388_ Lgt. Treads destroyed. 01388_ R-06 Scavenger collects Aluminum Leg. 01389_ K-01 Serf collects debris. 01389_ S-10 Pest destroyed. 01392_ K-01 Serf collects debris. 01392_ R-06 Scavenger collects Ion Engine. 01395_ K-01 Serf collects debris. 01395_ R-06 Scavenger collects Heat Sink. 01398_ K-01 Serf collects debris. 01402_ R-06 Scavenger destroyed. 01402_ K-01 Serf collects debris. 01403_ System corrupted: Lgt. Assault Rifle rejected. 01403_ K-01 Serf collects debris. 01414_ Lgt. Cannon destroyed. Map ----- +----------------------------------------------------+ | ??????????# T + #????????????? | | ########### # ! #????????????? | | # # ####### # #????????????? | | # ^"T" # # ! ## ##[ #????????????? | | # # + ## ############????????????? | | # ^ ^ + # ## #???????????????????????? | | + """" # # ## #???????????????????????? | | # """" ## ## """ ## #???????????????????????? | | # """" ## ## """ # ???????????????????????? | | # ## ## """ # "??????????????????????? | | #####+##### # # !!?????????????????????? | | ## # # < ""#????????????????????? | | ## # # !!#????????????????????? | | ### ## "T" # ""#????????????????????? | | #?# ## # "#????????????????????? | | """ """ #?# ######### ###?????????????????????? | | """ """ #?# #???????# #???????????????????????? | | """ """ #?# #???????# #???????????????????????? | | #?# #???????# #???????????????????????? | | ####+####### ######### ##?##???????????????????? | | ## #####+##????????????? | | %k ![ ####?????????? | | k %=*% ?????????? | | ###|= % % !k*%!!%#????????????? | | ??#=! % s%s% !! #????????????? | | ??# @ %%%%%!! #????????????? | | ??# % [ k #????????????? | | ??# %r % #????????????? | | ??+ ############### #????????????? | | ??# # ?????##+## #????????????? | | ??# + T """?????????? #? #????????????? | | ??# # """"???????????#???#????????????? | | ??# "" # """"????????????????????????????? | | ### "Y # """"" ??????????????????????????? | | "" + ["" #?????????????????????????? | | # %%== #?????????????????????????? | | # = !% #?????????????????????????? | | ##+########+############?????????????????????????? | | ? ????# #???????????????????????????????? | | ? ????# """ #???????????????????????????????? | | ???# """ #???????????????????????????????? | | ???# """ #???????????????????????????????? | | ??# #???????????????????????????????? | | ??# """ #???????????????????????????????? | | ?# """ #???????????????????????????????? | | ?# ""???????????????????????????????????? | | # ????????????????????????????????????? | | #############????????????????????????????????????? | | ?????????????????????????????????????????????????? | | | +----------------------------------------------------+ Best States ------------- Heat Dissipation 25 Energy Generation 10 Energy Capacity 250 Matter Stores 220 Matter Capacity 300 Sight Range 16 Terrain Scan Density 10 Evasion (%) 40 Recoil Reduction 2 Item Schematics ----------------- None Robot Schematics ------------------ None Fabricated ------------ Nothing Repaired ---------- Nothing Studied --------- None Alien Tech Used ----------------- None Achievements -------------- None Challenges ------------ None Game ------ Seed DeuteriumGravmagFalx Manual? 0 Play Time 00:26:47 Cumulative 29.0 hours Start 2026.04.10 @ 01:05:07 End 2026.04.10 @ 01:54:03 Sessions 4 Manual Loads 0 Difficulty Rogue Special Mode None Game No. 82 Rogue 82 Adventurer 0 Explorer 0 Win Type - Total 0 Types 0/0/0/0/0/0/0/0/0/0 Lore% 13 Gallery% 22 Achievement% 14 Wizard Run 0 Options --------- Layout 2 ASCII 0 Keyboard 1 Movement Vi Keybinds 0 Fullscreen 0 Font 16/Tamsyn Map View 64x51 Zoom Use 0% Tactical HUD 1 Map Filters NONE Filters NONE Steam 1 RUN: 70988b16-02df-4dab-8ec0-cc3f1233f741